{"text_format":"1","workbook":"xlsx","n_sheets":9,"sheets":["Overview","Filter ","UVGI Inventory","Economizer Repair","Ventilation & DCV","Exhaust System","CO2 Monitor","Maintenance_Cost Summary","Replacement_New HVAC"],"not_rendered":{"charts":0,"images":1,"macros":0,"external_links":11,"defined_names":788,"comments":0,"pivot_tables":0},"unopened":[],"bounds":{"document_bytes":16777216,"sheet_cells":100000,"rows_first":2000,"rows_last":500,"rows_between":2000,"halvings":0,"cell_chars":16384,"cell_head_chars":4096},"cells_cut":0,"cells_raw":0,"read":"whole","date_system":"1900"}

{"sheet":"Overview","index":0,"n_rows":7,"n_cols":1,"rows_kept":7,"cut":false,"hidden":false,"merged":[[0,0,1,0]]}
["School and Small Business Ventilation and Energy Efficiency Verification and Repair Program (SSB-VEEVR)"]
[]
["FY22 October 1, 2021 – June 30, 2022"]
["Version 1.0"]
["HVAC Data Collection Worksheets"]
[]
["These worksheets are intended to help program participants gather information needed to complete the HVAC Assessment Report for the New Jersey School and Small Business Ventilation and Energy Efficiency Verification and Repair (SSB-VEEVR), which includes documentation of existing HVAC equipment and systems, proposed upgrades, and provide cost estimates. \n\nThe worksheets are an optional data gathering tool to assist participants. To comply with grant requirements and be eligible for funding, participants must submit an SSB-VEEVR Program application electronically at www.NJCleanEnergy.com/SSBStimulus or by email to SSBStimulus@NJCleanEnergy.com.\n\nThe SSB-VEEVR Program Guidelines and other program requirements such as a data reporting and processes, are subject to change by the New Jersey Board of Public Utilities. These worksheets may change as a result of updated program requirements. Participants must comply with the most current requirements of the program and use the most recent version of these worksheets.\n\nWhile projects are not required to use this workbook, the HVAC Assessment Report should document the existing conditions of HVAC equipment and systems for which grant funds are requested.  Users are encouraged to use the Program workbook and are welcome to adapt this workbook for their use."]

{"sheet":"Filter ","index":1,"n_rows":29,"n_cols":14,"rows_kept":29,"cut":false,"hidden":false,"merged":[[28,1,28,12],[2,13,3,13],[2,10,2,12],[26,1,27,12],[25,1,25,12],[2,4,2,9]]}
["Filter Inventory "]
[" All fields required "]
[null,null,null,null,"Filter Replacement/Upgrade Measure",null,null,null,null,null,"Filter Replacement/Upgrade Cost Estimate3",null,null,"Program notes (for internal use only) "]
[null,"Site Name","Building","System Tag ","Existing Filter Quantity","Existing Final Filter MERV Rating ","Filter Upgrade Needed? (Yes/No)","Proposed Filter Quantity","Proposed Final Filter MERV Rating1,2 ","Additional Details: ","Material Cost ($ per filter)","Labor Cost \n($ per filter)","Total Cost \n($)"]
["Example","ABC","XYZ","AH-1",16,8,"Yes",16,13,"Qualified Testing Personnel will review system capacity, airflow and performance to determine the highest MERV filtration that can be installed without adversely impacting equipment. "]
[null,null,null,null,null,null,null,null,null,null,null,null,{"$f":"H6*(K6+L6)","v":0}]
[null,null,null,null,null,null,null,null,null,null,null,null,{"$f":"H7*(K7+L7)","v":0}]
[null,null,null,null,null,null,null,null,null,null,null,null,{"$f":"H8*(K8+L8)","v":0}]
[null,null,null,null,null,null,null,null,null,null,null,null,0]
[null,null,null,null,null,null,null,null,null,null,null,null,0]
[null,null,null,null,null,null,null,null,null,null,null,null,0]
[null,null,null,null,null,null,null,null,null,null,null,null,0]
[null,null,null,null,null,null,null,null,null,null,null,null,0]
[null,null,null,null,null,null,null,null,null,null,null,null,0]
[null,null,null,null,null,null,null,null,null,null,null,null,0]
[null,null,null,null,null,null,null,null,null,null,null,null,0]
[null,null,null,null,null,null,null,null,null,null,null,null,0]
[null,null,null,null,null,null,null,null,null,null,null,null,0]
[null,null,null,null,null,null,null,null,null,null,null,null,0]
[null,null,null,null,null,null,null,null,null,null,null,null,0]
[null,null,null,null,null,null,null,null,null,null,null,null,0]
[null,null,null,null,null,null,null,null,null,null,null,null,0]
[null,null,null,null,null,null,null,null,null,null,null,null,0]
[null,null,null,null,{"$f":"SUM(E6:E23)","v":0},null,null,{"$f":"SUM(H6:H23)","v":0},null,"Totals: ",{"$f":"SUM(K6:K23)","v":0},{"$f":"SUM(L6:L23)","v":0},{"$f":"SUM(M6:M23)","v":0}]
[null,"Notes: "]
[null,"1. For proposed filter rating, if MERV 13 or better is not feasible in one or more of the buildings covered by the grant, install the highest MERV filtration that can be used in the subject building(s) without adversely impacting the buildings’ HVAC equipment."]
[null,"2. Qualified Testing Personnel shall review system capacity and airflow to determine the highest MERV filtration that can be installed without adversely impacting equipment. A qualified contractor shall replace or upgrade filters where needed and shall verify that those filters are installed correctly."]
[]
[null,"3. The purchase of additional replacement filters for future use is not an eligible cost and may not be included in the cost estimate "]

{"sheet":"UVGI Inventory","index":2,"n_rows":26,"n_cols":13,"rows_kept":26,"cut":false,"hidden":false,"merged":[[2,9,2,11],[2,4,2,8],[2,12,3,12]]}
["UVGI Inventory "]
["If system is equipped with UVGI"]
[null,null,null,null,"UVGI Maintenance/Upgrade Measure",null,null,null,null,"UVGI Maintenance/Upgrade Cost Estimate1",null,null,"Program notes (for internal use only) "]
[null,"Site Name","Building","System Tag ","UVGI Lamp Quantity","UVGI Lamp Wattage","UVGI Lamp Operation Check? (Yes/No)","UVGI Lamp Replacement Needed? (Yes/No)","Notes: ","Material Cost      ($ per lamp)","Labor Cost      ($ per lamp)","Total Cost ($)"]
["Example","ABC","XYZ","AH-1",4,25,"Yes","Yes ","Existing UVGI lamps are burnt out and need replacement. "]
[null,null,null,null,null,null,null,null,null,null,null,{"$f":"E6*(J6+K6)","v":0}]
[null,null,null,null,null,null,null,null,null,null,null,0]
[null,null,null,null,null,null,null,null,null,null,null,0]
[null,null,null,null,null,null,null,null,null,null,null,0]
[null,null,null,null,null,null,null,null,null,null,null,0]
[null,null,null,null,null,null,null,null,null,null,null,0]
[null,null,null,null,null,null,null,null,null,null,null,0]
[null,null,null,null,null,null,null,null,null,null,null,0]
[null,null,null,null,null,null,null,null,null,null,null,0]
[null,null,null,null,null,null,null,null,null,null,null,0]
[null,null,null,null,null,null,null,null,null,null,null,0]
[null,null,null,null,null,null,null,null,null,null,null,0]
[null,null,null,null,null,null,null,null,null,null,null,0]
[null,null,null,null,null,null,null,null,null,null,null,0]
[null,null,null,null,null,null,null,null,null,null,null,0]
[null,null,null,null,null,null,null,null,null,null,null,0]
[null,null,null,null,null,null,null,null,null,null,null,0]
[null,null,null,null,null,null,null,null,null,null,null,0]
[null,null,null,null,{"$f":"SUM(E6:E23)","v":0},null,null,null,"Totals: ",{"$f":"SUM(J6:J23)","v":0},{"$f":"SUM(K6:K23)","v":0},{"$f":"SUM(L6:L23)","v":0}]
[null,"Notes: "]
[null,"1. The purchase of additional UVGI lamps for future use is not an eligible cost and may not be included in the cost estimate."]

{"sheet":"Economizer Repair","index":3,"n_rows":27,"n_cols":15,"rows_kept":27,"cut":false,"hidden":false,"merged":[[2,11,2,13],[2,6,2,10],[2,14,3,14]]}
["Economizer Repair "]
[" All fields required "]
[null,null,null,null,null,null,"Economizer Repair Measure",null,null,null,null,"Economizer Repair Cost Estimate",null,null,"Program notes (for internal use only) "]
[null,"Site Name","Building","System Tag ","System Type         Single or Multi-zone      (SZ/MZ)","Flow Type Constant or Variable (CAV/VAV)","Economizer? (Yes/No)","Economizer Functionality Checked?1 (Yes/No)","Economizer Needs Repair? (Yes/No)","Economizer Mechanical Repair Details ","Economizer Control Upgrade Details ","Material Cost\n ($)","Labor Cost\n ($)","Total Cost\n ($)"]
["Example","ABC","XYZ","AH-1 ","SZ","CAV","Yes","Yes","Yes","OA dampers & actuator need to be replaced","Economizer controller need replacement and Economizer lockout need to be set to 75 F"]
["Example","ABC","XYZ","RTU-2","MZ","VAV","Yes","Yes","Yes","Supply fan motor and belt need to be replaced","Revise programming to do two-position damper position reset as a function of fan speed."]
[null,null,null,null,null,null,null,null,null,null,null,null,null,{"$f":"L7+M7","v":0}]
[null,null,null,null,null,null,null,null,null,null,null,null,null,{"$f":"L8+M8","v":0}]
[null,null,null,null,null,null,null,null,null,null,null,null,null,0]
[null,null,null,null,null,null,null,null,null,null,null,null,null,0]
[null,null,null,null,null,null,null,null,null,null,null,null,null,0]
[null,null,null,null,null,null,null,null,null,null,null,null,null,0]
[null,null,null,null,null,null,null,null,null,null,null,null,null,0]
[null,null,null,null,null,null,null,null,null,null,null,null,null,0]
[null,null,null,null,null,null,null,null,null,null,null,null,null,0]
[null,null,null,null,null,null,null,null,null,null,null,null,null,0]
[null,null,null,null,null,null,null,null,null,null,null,null,null,0]
[null,null,null,null,null,null,null,null,null,null,null,null,null,0]
[null,null,null,null,null,null,null,null,null,null,null,null,null,0]
[null,null,null,null,null,null,null,null,null,null,null,null,null,0]
[null,null,null,null,null,null,null,null,null,null,null,null,null,0]
[null,null,null,null,null,null,null,null,null,null,null,null,null,0]
[null,null,null,null,null,null,null,null,null,null,null,null,null,{"$f":"L23+M23","v":0}]
[null,null,null,null,null,null,null,null,null,null,null,null,null,{"$f":"L24+M24","v":0}]
[null,null,null,{"$f":"COUNTIF(D7:D24,\"*\")","v":0},null,null,null,null,null,null,"Totals: ",{"$f":"SUM(L7:L24)","v":0},{"$f":"SUM(M7:M24)","v":0},{"$f":"SUM(N7:N24)","v":0}]
[null,"Notes: "]
[null,"1. For HVAC systems with economizers, qualified testing personnel shall test the HVAC system economizer dampers. Economizer dampers and controls that are not properly functioning shall be repaired by a Skilled and Trained Workforce."]

{"sheet":"Ventilation & DCV","index":4,"n_rows":26,"n_cols":23,"rows_kept":26,"cut":false,"hidden":false,"merged":[[2,22,3,22],[29,1,29,5],[29,6,29,8],[29,9,30,9],[2,4,2,8],[2,9,2,11],[25,1,26,11],[2,12,3,12],[2,14,2,18],[2,19,2,21]]}
["Ventilation & DCV"]
[" All fields required ",null,null,null,null,null,null,null,null,null,null,null,null,null," All fields required "]
[null,null,null,null,"Ventilation Assessment and Rebalance Outside Air Measure",null,null,null,null,"Ventilation Assessment and Rebalance Outside Air Cost Estimate",null,null,"Program notes (for internal use only) ",null,"DCV Measure",null,null,null,null,"DCV Repair Cost Estimate ($)",null,null,"Program notes (for internal use only) "]
[null,"Site Name","Building","System Tag ","Design Total Airflow \n(CFM)","Required Ventilation (CFM)1","Measured Ventilation (CFM)..as per TAB report","OSA Damper Position\n(%)..as per TAB report","Rebalance OA Required?  (Yes/No)","Material Cost \n($)","Labor Cost \n($)","Total Cost \n($)",null,null,"DCV? \n(Yes/No)","DCV Functionality Checked?  (Yes/No)","DCV - CO2 Setpoint 800 ppm or less? (Yes/No)","DCV Need Repair or Upgrade? (Yes/No)","DCV Repair or Upgrade Details","Material Cost \n($)","Labor Cost \n($)","Total Cost \n($)"]
["Example","ABC","XYZ","AH-1",1600,320,150,10,"Yes",null,null,null,null,"Example","Yes","Yes","No","Yes","Setpoint need to be revised from 1,000 ppm to 800 ppm"]
[null,null,null,null,null,null,null,null,null,null,null,{"$f":"J6+K6","v":0},null,null,null,null,null,null,null,null,null,{"$f":"T6+U6","v":0}]
[null,null,null,null,null,null,null,null,null,null,null,{"$f":"J7+K7","v":0},null,null,null,null,null,null,null,null,null,{"$f":"T7+U7","v":0}]
[null,null,null,null,null,null,null,null,null,null,null,0,null,null,null,null,null,null,null,null,null,0]
[null,null,null,null,null,null,null,null,null,null,null,0,null,null,null,null,null,null,null,null,null,0]
[null,null,null,null,null,null,null,null,null,null,null,0,null,null,null,null,null,null,null,null,null,0]
[null,null,null,null,null,null,null,null,null,null,null,0,null,null,null,null,null,null,null,null,null,0]
[null,null,null,null,null,null,null,null,null,null,null,0,null,null,null,null,null,null,null,null,null,0]
[null,null,null,null,null,null,null,null,null,null,null,0,null,null,null,null,null,null,null,null,null,0]
[null,null,null,null,null,null,null,null,null,null,null,0,null,null,null,null,null,null,null,null,null,0]
[null,null,null,null,null,null,null,null,null,null,null,0,null,null,null,null,null,null,null,null,null,0]
[null,null,null,null,null,null,null,null,null,null,null,0,null,null,null,null,null,null,null,null,null,0]
[null,null,null,null,null,null,null,null,null,null,null,0,null,null,null,null,null,null,null,null,null,0]
[null,null,null,null,null,null,null,null,null,null,null,0,null,null,null,null,null,null,null,null,null,0]
[null,null,null,null,null,null,null,null,null,null,null,0,null,null,null,null,null,null,null,null,null,0]
[null,null,null,null,null,null,null,null,null,null,null,0,null,null,null,null,null,null,null,null,null,0]
[null,null,null,null,null,null,null,null,null,null,null,0,null,null,null,null,null,null,null,null,null,0]
[null,null,null,null,null,null,null,null,null,null,null,0,null,null,null,null,null,null,null,null,null,0]
[null,null,null,null,null,null,null,null,null,null,null,0,null,null,null,null,null,null,null,null,null,0]
[null,null,null,{"$f":"COUNTIF(D6:D23,\"*\")","v":0},null,null,null,null,"Totals: ",{"$f":"SUM(J6:J23)","v":0},{"$f":"SUM(K6:K23)","v":0},{"$f":"SUM(L6:L23)","v":0},null,null,null,null,null,null,"Totals: ",{"$f":"SUM(T6:T23)","v":0},{"$f":"SUM(U6:U23)","v":0},{"$f":"SUM(V6:V23)","v":0}]
[null,"Notes: "]
[null,"1. A Qualified Testing Personnel shall verify the ventilation rates in the school or Small Business building, and other occupied areas to assess whether they meet the minimum ventilation rate requirements set forth in ANSI/ASHRAE Standard 62.1-2019, Ventilation for Acceptable Indoor Air Assessment. "]

{"sheet":"Exhaust System","index":5,"n_rows":26,"n_cols":12,"rows_kept":26,"cut":false,"hidden":false,"merged":[[2,8,2,10],[2,4,2,7],[2,11,3,11]]}
["Exhaust System"]
[" All fields required "]
[null,null,null,null,"Exhaust System  Repair/Upgrade Measures",null,null,null,"Exhaust System Repair/Upgrade Cost Estimate",null,null,"Program notes (for internal use only) "]
[null,"Site Name","Building","System Tag ","Design Total Exhaust Airflow \n(CFM)","Measured Total Exhaust Airflow \n(CFM)1 ","Repair/Upgrade  Required? (Yes/No)","Repair/Upgrade Details","Material Cost ($)","Labor Cost ($)","Total Cost ($)"]
["Example","ABC","XYZ","EX-1",400,200,"Yes","EF belt was slipping. Need repair and new EF belt. "]
[null,null,null,null,null,null,null,null,null,null,{"$f":"I6+J6","v":0}]
[null,null,null,null,null,null,null,null,null,null,{"$f":"I7+J7","v":0}]
[null,null,null,null,null,null,null,null,null,null,0]
[null,null,null,null,null,null,null,null,null,null,0]
[null,null,null,null,null,null,null,null,null,null,0]
[null,null,null,null,null,null,null,null,null,null,0]
[null,null,null,null,null,null,null,null,null,null,0]
[null,null,null,null,null,null,null,null,null,null,0]
[null,null,null,null,null,null,null,null,null,null,0]
[null,null,null,null,null,null,null,null,null,null,0]
[null,null,null,null,null,null,null,null,null,null,0]
[null,null,null,null,null,null,null,null,null,null,0]
[null,null,null,null,null,null,null,null,null,null,0]
[null,null,null,null,null,null,null,null,null,null,0]
[null,null,null,null,null,null,null,null,null,null,0]
[null,null,null,null,null,null,null,null,null,null,0]
[null,null,null,null,null,null,null,null,null,null,0]
[null,null,null,null,null,null,null,null,null,null,0]
[null,null,null,{"$f":"COUNTIF(D6:D23,\"*\")","v":0},null,null,null,"Totals: ",{"$f":"SUM(I6:I23)","v":0},{"$f":"SUM(J6:J23)","v":0},{"$f":"SUM(K6:K23)","v":0}]
[null,"Note: "]
[null,"1. Measurement of all exhaust air volume for exhaust fans, including restrooms. Document any discrepancies from system design."]

{"sheet":"CO2 Monitor","index":6,"n_rows":35,"n_cols":12,"rows_kept":35,"cut":false,"hidden":false,"merged":[[2,11,3,11],[26,2,27,10],[28,2,29,10],[30,2,31,10],[34,2,34,10],[2,8,2,10],[2,4,2,7]]}
["CO2 Monitoring "]
[" All fields required "]
[null,null,null,null,"CO2 Monitoring Measure",null,null,null,"CO2 Monitoring Measure Cost Estimate",null,null,"Program notes (for internal use only) "]
[null,"Site Name","Building","Room(s)","Existing CO2 Monitor? (Yes/No)","Quantity","CO2 monitor meets guideline requirements? (Yes/No)","Install new CO2 Monitor? (Yes/No)","Material Cost \n($ per monitor)","Labor Cost\n($ per monitor)","Total Cost\n($)"]
["Example","ABC","XYZ","Classroom  101","Yes",1,"No","Yes"]
[null,null,null,null,null,null,null,null,null,null,{"$f":"F6*(I6+J6)","v":0}]
[null,null,null,null,null,null,null,null,null,null,{"$f":"F7*(I7+J7)","v":0}]
[null,null,null,null,null,null,null,null,null,null,{"$f":"F8*(I8+J8)","v":0}]
[null,null,null,null,null,null,null,null,null,null,0]
[null,null,null,null,null,null,null,null,null,null,0]
[null,null,null,null,null,null,null,null,null,null,0]
[null,null,null,null,null,null,null,null,null,null,0]
[null,null,null,null,null,null,null,null,null,null,0]
[null,null,null,null,null,null,null,null,null,null,0]
[null,null,null,null,null,null,null,null,null,null,0]
[null,null,null,null,null,null,null,null,null,null,0]
[null,null,null,null,null,null,null,null,null,null,0]
[null,null,null,null,null,null,null,null,null,null,0]
[null,null,null,null,null,null,null,null,null,null,0]
[null,null,null,null,null,null,null,null,null,null,0]
[null,null,null,null,null,null,null,null,null,null,0]
[null,null,null,null,null,null,null,null,null,null,0]
[null,null,null,null,null,null,null,null,null,null,0]
[null,null,null,null,null,{"$f":"SUM(F6:F23)","v":0},null,"Totals: ",{"$f":"SUM(I6:I23)","v":0},{"$f":"SUM(J6:J23)","v":0},{"$f":"SUM(K6:K23)","v":0}]
[null,"Notes: "]
[null,"1. CO2 monitor requirements from SSB-VEEVR Program Guidelines - "]
[null,"i.","The monitor is hard-wired or plugged-in and mounted to the wall between three and six feet above the floor and at least five feet away from the door and operable windows."]
[]
[null,"ii.","The monitor displays the carbon dioxide readings to the teacher through a display on the device or other means such as a web-based application or cellular telephone application."]
[]
[null,"iii.","The monitor provides a notification through a visual indicator on the monitor, such as an indicator light or other alert system, including but not limited to an electronic mail, text, or cellular telephone application, when the carbon dioxide levels in the classroom have exceeded 1,100 ppm."]
[]
[null,"iv.","The monitor maintains a record of previous data that includes at least the maximum carbon dioxide concentration measured."]
[null,"v.","The monitor has a range of 400 ppm to 2,000 ppm or greater."]
[null,"vi.","The monitor is certified by the manufacturer to be accurate within 75 ppm at 1,000 ppm carbon dioxide concentration and is certified by the manufacturer to require calibration no more frequently than once every five years."]

{"sheet":"Maintenance_Cost Summary","index":7,"n_rows":12,"n_cols":7,"rows_kept":12,"cut":false,"hidden":false,"merged":[]}
["HVAC Assessment and Maintenance Pathway: Cost Summary"]
["Costs from yellow shaded tabs will be shown here"]
[null,null,null,"Quantity","Material Cost ($)","Labor Cost ($)","Total Cost ($)"]
[null,null,"Filter Replacement/Upgrade Cost ",{"$f":"SUM('Filter '!H24)","v":0},{"$f":"SUM('Filter '!K24)","v":0},{"$f":"SUM('Filter '!L24)","v":0},{"$f":"SUM('Filter '!M24)","v":0}]
[null,null,"UVGI Maintenance Cost ",{"$f":"SUM('UVGI Inventory'!E24)","v":0},{"$f":"SUM('UVGI Inventory'!J24)","v":0},{"$f":"SUM('UVGI Inventory'!K24)","v":0},{"$f":"SUM('UVGI Inventory'!L24)","v":0}]
[null,null,"System Economizer Repair/Upgrade Cost ",{"$f":"SUM('Economizer Repair'!D25)","v":0},{"$f":"SUM('Economizer Repair'!L25)","v":0},{"$f":"SUM('Economizer Repair'!M25)","v":0},{"$f":"SUM('Economizer Repair'!N25)","v":0}]
[null,null,"Ventilation & DCV Assessment, Repair/Upgrade Cost ",{"$f":"SUM('Ventilation & DCV'!D24)","v":0},{"$f":"SUM('Ventilation & DCV'!J24+'Ventilation & DCV'!T24)","v":0},{"$f":"SUM('Ventilation & DCV'!K24+'Ventilation & DCV'!U24)","v":0},{"$f":"SUM('Ventilation & DCV'!L24+'Ventilation & DCV'!V24)","v":0}]
[null,null,"Exhaust System  Repair/Upgrade Cost ",{"$f":"SUM('Exhaust System'!D24)","v":0},{"$f":"SUM('Exhaust System'!I24)","v":0},{"$f":"SUM('Exhaust System'!J24)","v":0},{"$f":"SUM('Exhaust System'!K24)","v":0}]
[null,null,"CO2 Monitor Repair/Upgrade Cost ",{"$f":"SUM('CO2 Monitor'!F24)","v":0},{"$f":"SUM('CO2 Monitor'!I24)","v":0},{"$f":"SUM('CO2 Monitor'!J24)","v":0},{"$f":"SUM('CO2 Monitor'!K24)","v":0}]
[null,null,"Totals: ",null,{"$f":"SUM(E4:E9)","v":0},{"$f":"SUM(F4:F9)","v":0},{"$f":"SUM(G4:G9)","v":0}]
[]
[null,null,null,null,null,"Estimated Incentive",{"$f":"G10*0.75","v":0}]

{"sheet":"Replacement_New HVAC","index":8,"n_rows":36,"n_cols":25,"rows_kept":36,"cut":false,"hidden":false,"merged":[[2,16,2,18],[2,21,2,23],[2,24,3,24],[2,4,2,15],[33,1,34,17],[3,19,4,19]]}
["Replacement or New Air-Side HVAC"]
[" All fields required "]
[null,null,null,null,"Existing Air-Side HVAC",null,null,null,null,null,null,null,null,null,null,null,"Replacement/ Proposed Air-Side HVAC ",null,null,null,null," Replacement or New Air-Side HVAC Cost Estimate 2",null,null,"Program notes (for internal use only) "]
[null,"Site Name","Building","System Tag","Equipment Type","Unit Location","Areas Served","Number of Identical Units","Year Manufactured ","Remaining Useful life (<3 years)?  (Yes/No)","Cooling Type","Cooling Capacity (mbh)","Heating Type","Heating Capacity\n(mbh)","Supply Airflow\n(cfm)","Outside Air\n(cfm)","Reason for Replacement or New Air-Side HVAC1","Does the proposed system meet or exceed the ANSI/ASHRAE Standard 62.1-2019, Ventilation for Acceptable Indoor Air Quality?\n(Yes/No) ","Does the proposed system meet or exceed the ventilation and filtration standards described in SSB-VEEVR Program Guide? \n(Yes/No) ","Program notes (for internal use only) ",null,"Material Cost Per Unit ($)","Labor Cost                   Per Unit ($)","Total Cost \n($)"]
["Example","ABC","XYZ","AH-3","Packaged","Roof","Administration",1,1980,"Yes","DX",36.299999999999997,"Gas Furnace",103.4,1500,150,"Very old unit. Not able to achieve required ventilation with repair or upgrade. Replacement is only option. ","Yes","Yes",null,null,7000,1500,{"$f":"H5*(V5+W5)","v":8500}]
[null,null,null,null,null,null,null,null,null,null,null,null,null,null,null,null,null,null,null,null,null,null,null,{"$f":"H6*(V6+W6)","v":0}]
[null,null,null,null,null,null,null,null,null,null,null,null,null,null,null,null,null,null,null,null,null,null,null,{"$f":"H7*(V7+W7)","v":0}]
[null,null,null,null,null,null,null,null,null,null,null,null,null,null,null,null,null,null,null,null,null,null,null,0]
[null,null,null,null,null,null,null,null,null,null,null,null,null,null,null,null,null,null,null,null,null,null,null,0]
[null,null,null,null,null,null,null,null,null,null,null,null,null,null,null,null,null,null,null,null,null,null,null,0]
[null,null,null,null,null,null,null,null,null,null,null,null,null,null,null,null,null,null,null,null,null,null,null,0]
[null,null,null,null,null,null,null,null,null,null,null,null,null,null,null,null,null,null,null,null,null,null,null,0]
[null,null,null,null,null,null,null,null,null,null,null,null,null,null,null,null,null,null,null,null,null,null,null,0]
[null,null,null,null,null,null,null,null,null,null,null,null,null,null,null,null,null,null,null,null,null,null,null,0]
[null,null,null,null,null,null,null,null,null,null,null,null,null,null,null,null,null,null,null,null,null,null,null,0]
[null,null,null,null,null,null,null,null,null,null,null,null,null,null,null,null,null,null,null,null,null,null,null,0]
[null,null,null,null,null,null,null,null,null,null,null,null,null,null,null,null,null,null,null,null,null,null,null,0]
[null,null,null,null,null,null,null,null,null,null,null,null,null,null,null,null,null,null,null,null,null,null,null,0]
[null,null,null,null,null,null,null,null,null,null,null,null,null,null,null,null,null,null,null,null,null,null,null,0]
[null,null,null,null,null,null,null,null,null,null,null,null,null,null,null,null,null,null,null,null,null,null,null,0]
[null,null,null,null,null,null,null,null,null,null,null,null,null,null,null,null,null,null,null,null,null,null,null,0]
[null,null,null,null,null,null,null,null,null,null,null,null,null,null,null,null,null,null,null,null,null,null,null,0]
[null,null,null,null,null,null,null,null,null,null,null,null,null,null,null,null,null,null,null,null,null,null,null,0]
[null,null,null,null,null,null,null,null,null,null,null,null,null,null,null,null,null,null,null,null,null,null,null,0]
[null,null,null,null,null,null,null,null,null,null,null,null,null,null,null,null,null,null,null,null,null,null,null,0]
[null,null,null,null,null,null,null,null,null,null,null,null,null,null,null,null,null,null,null,null,null,null,null,0]
[null,null,null,null,null,null,null,null,null,null,null,null,null,null,null,null,null,null,null,null,null,null,null,0]
[null,null,null,null,null,null,null,null,null,null,null,null,null,null,null,null,null,null,null,null,null,null,null,0]
[null,null,null,null,null,null,null,null,null,null,null,null,null,null,null,null,null,null,null,null,null,null,null,0]
[null,null,null,null,null,null,null,null,null,null,null,null,null,null,null,null,null,null,null,null,null,null,null,0]
[null,null,null,null,null,null,null,null,null,null,null,null,null,null,null,null,null,null,null,null,null,null,null,0]
[null,null,null,null,null,null,null,null,null,null,null,null,null,null,null,null,null,null,null,null,"Totals: ",{"$f":"SUM(V6:V31)","v":0},{"$f":"SUM(W6:W31)","v":0},{"$f":"SUM(X6:X31)","v":0}]
[null,"Note: "]
[null,"1. The applicant must provide supporting documentation showing that the existing HVAC equipment (or lack thereof) is unable to meet the minimum ventilation and filtration standards described in SSB-VEEVR program guide without an HVAC system or unit replacement. All proposed new systems or HVAC system replacements must meet or exceed the ventilation and filtration standards described in SSB-VEEVR program Guide, and the new or replacement HVAC system must also meet the necessary and cost-effectiveness standards set forth in SSB-VEEVR program guide.",null,null,null,null,null,null,null,null,null,null,null,null,null,null,null,null,null,null,null,null,"Estimated Incentive",{"$f":"X32*0.75","v":0}]
[]
[null,"2. If identified costs for proposed system vary by more than 10% from RSMeans expected construction cost data, the Applicant shall provide justification for higher costs of requested funding."]